[Event "Late-Titled-Tuesday-Blitz-June-25-2024"]
[Site "Chess.com"]
[Date "2024.06.25"]
[Round "10"]
[White "BardArtem"]
[Black "rhungaski"]
[Result "0-1"]
[WhiteElo "2809"]
[BlackElo "2662"]
[TimeControl "180+1"]
[EndTime "15:57:46 PDT"]
[Termination "rhungaski won by resignation"]

1. e4 {[%clk 0:03:00.9]} 1... e6 {[%clk 0:02:59.9]} 2. d4 {[%clk 0:03:00.5]}
2... d5 {[%clk 0:03:00.6]} 3. Nc3 {[%clk 0:03:00.8]} 3... Bb4 {[%clk 0:02:52.4]}
4. Ne2 {[%clk 0:02:59.1]} 4... dxe4 {[%clk 0:02:52.1]} 5. a3 {[%clk 0:02:58.3]}
5... Be7 {[%clk 0:02:52.6]} 6. Nxe4 {[%clk 0:02:58.3]} 6... Nf6 {[%clk
0:02:52.5]} 7. Nxf6+ {[%clk 0:02:58.8]} 7... Bxf6 {[%clk 0:02:52.2]} 8. Be3
{[%clk 0:02:59.7]} 8... Nc6 {[%clk 0:02:50.9]} 9. Ng3 {[%clk 0:02:58.9]} 9...
Bxd4 {[%clk 0:02:41.7]} 10. Bxd4 {[%clk 0:02:49.2]} 10... Qxd4 {[%clk 0:02:34]}
11. Bd3 {[%clk 0:02:40.8]} 11... Qe5+ {[%clk 0:02:21.7]} 12. Ne2 {[%clk
0:02:35.2]} 12... Qxb2 {[%clk 0:02:21.3]} 13. O-O {[%clk 0:02:33.5]} 13... Qf6
{[%clk 0:02:18.6]} 14. Ng3 {[%clk 0:02:26.6]} 14... O-O {[%clk 0:02:12.2]} 15.
Rb1 {[%clk 0:02:24.2]} 15... e5 {[%clk 0:02:11]} 16. Re1 {[%clk 0:02:18.8]}
16... Ne7 {[%clk 0:01:46]} 17. Rb4 {[%clk 0:01:49.7]} 17... Ng6 {[%clk
0:01:43.3]} 18. Qh5 {[%clk 0:01:44.8]} 18... b6 {[%clk 0:01:39.1]} 19. Ne4
{[%clk 0:01:09.3]} 19... Qe7 {[%clk 0:01:35]} 20. Ng5 {[%clk 0:01:06.9]} 20...
h6 {[%clk 0:01:34.8]} 21. Nf3 {[%clk 0:00:55.4]} 21... Qf6 {[%clk 0:01:29.3]}
22. Nxe5 {[%clk 0:00:34.8]} 22... Nf4 {[%clk 0:01:18.7]} 23. Qf3 {[%clk
0:00:23.3]} 23... Nxd3 {[%clk 0:01:16.5]} 24. Qxf6 {[%clk 0:00:09.3]} 24... gxf6
{[%clk 0:01:17.4]} 25. Nxd3 {[%clk 0:00:10.2]} 25... Bf5 {[%clk 0:01:17.6]} 26.
g4 {[%clk 0:00:07.7]} 26... Bxd3 {[%clk 0:01:17.3]} 27. cxd3 {[%clk 0:00:08.6]}
27... Rfe8 {[%clk 0:01:16.7]} 28. Rc1 {[%clk 0:00:05.9]} 28... c5 {[%clk
0:01:16.4]} 29. Rf4 {[%clk 0:00:06.5]} 29... Kg7 {[%clk 0:01:16.2]} 30. d4
{[%clk 0:00:05.1]} 30... Rac8 {[%clk 0:01:12.5]} 31. dxc5 {[%clk 0:00:03.1]}
31... Rxc5 {[%clk 0:01:11.7]} 32. Rd1 {[%clk 0:00:03.3]} 32... Ra5 {[%clk
0:00:58.5]} 33. a4 {[%clk 0:00:03.5]} 33... Rae5 {[%clk 0:00:58.1]} 34. Rd6
{[%clk 0:00:02.3]} 34... R8e6 {[%clk 0:00:57.1]} 35. Rdd4 {[%clk 0:00:02.5]}
35... Kg6 {[%clk 0:00:56.7]} 36. h4 {[%clk 0:00:01.6]} 36... f5 {[%clk
0:00:55.6]} 37. Kg2 {[%clk 0:00:01.9]} 37... fxg4 {[%clk 0:00:51.5]} 38. Rxg4+
{[%clk 0:00:02.8]} 38... Kf6 {[%clk 0:00:52]} 39. Rgf4+ {[%clk 0:00:02.3]} 39...
Ke7 {[%clk 0:00:49.5]} 40. Rc4 {[%clk 0:00:02.1]} 40... Rc5 {[%clk 0:00:37.9]}
41. Rcd4 {[%clk 0:00:02.6]} 41... f5 {[%clk 0:00:32.4]} 42. Rf3 {[%clk
0:00:01.8]} 42... Rg6+ {[%clk 0:00:30.9]} 43. Kf1 {[%clk 0:00:01.8]} 43... Rg4
{[%clk 0:00:28.9]} 44. Rff4 {[%clk 0:00:01.4]} 44... h5 {[%clk 0:00:27.8]} 45.
f3 {[%clk 0:00:01.4]} 45... Rxf4 {[%clk 0:00:23.6]} 46. Rxf4 {[%clk 0:00:02.3]}
46... Ke6 {[%clk 0:00:23.5]} 47. Ke2 {[%clk 0:00:01.9]} 47... Ke5 {[%clk
0:00:20.5]} 48. Rb4 {[%clk 0:00:02.4]} 48... Kd5 {[%clk 0:00:20.6]} 49. Kd3
{[%clk 0:00:02]} 49... Kc6 {[%clk 0:00:18]} 50. Rb1 {[%clk 0:00:01.6]} 50... a6
{[%clk 0:00:18.5]} 51. Rg1 {[%clk 0:00:02.2]} 51... Rd5+ {[%clk 0:00:18.8]} 52.
Kc4 {[%clk 0:00:02.1]} 52... b5+ {[%clk 0:00:19.2]} 53. axb5+ {[%clk 0:00:02.5]}
53... axb5+ {[%clk 0:00:20.1]} 54. Kc3 {[%clk 0:00:02.3]} 54... Kc5 {[%clk
0:00:20.3]} 55. Rg8 {[%clk 0:00:01.3]} 55... b4+ {[%clk 0:00:20.3]} 56. Kc2
{[%clk 0:00:02]} 56... Kd4 {[%clk 0:00:17.6]} 57. Rg5 {[%clk 0:00:01.8]} 57...
f4 {[%clk 0:00:16.6]} 58. Rg1 {[%clk 0:00:01.3]} 58... Ke3 {[%clk 0:00:16.6]}
59. Rg5 {[%clk 0:00:01.4]} 59... Rd4 {[%clk 0:00:08.8]} 60. Rxh5 {[%clk
0:00:01.7]} 60... Kxf3 {[%clk 0:00:09.2]} 61. Rh8 {[%clk 0:00:01.5]} 61... Ke2
{[%clk 0:00:06.1]} 62. h5 {[%clk 0:00:01.8]} 62... f3 {[%clk 0:00:06.6]} 63.
Re8+ {[%clk 0:00:02.5]} 63... Kf2 {[%clk 0:00:05.7]} 64. h6 {[%clk 0:00:02.8]}
64... Rh4 {[%clk 0:00:06.1]} 65. Re6 {[%clk 0:00:03.3]} 65... Kg3 {[%clk
0:00:04.7]} 66. Rg6+ {[%clk 0:00:03.1]} 66... Kf4 {[%clk 0:00:04.5]} 67. Kd3
{[%clk 0:00:03.2]} 67... b3 {[%clk 0:00:04.2]} 68. Rf6+ {[%clk 0:00:02.5]} 68...
Kg4 {[%clk 0:00:03.7]} 69. Ke3 {[%clk 0:00:03.2]} 69... b2 {[%clk 0:00:03.4]}
70. Rb6 {[%clk 0:00:02]} 70... Rxh6 {[%clk 0:00:01.6]} 71. Rxb2 {[%clk
0:00:01.4]} 71... Kg3 {[%clk 0:00:02.1]} 72. Rb8 {[%clk 0:00:01.1]} 72... Re6+
{[%clk 0:00:02.7]} 73. Kd2 {[%clk 0:00:01.7]} 73... Kf2 {[%clk 0:00:03.3]} 74.
Rh8 {[%clk 0:00:01.5]} 74... Re2+ {[%clk 0:00:04.2]} 75. Kd1 {[%clk 0:00:01.3]}
75... Re5 {[%clk 0:00:04]} 76. Rh2+ {[%clk 0:00:01.8]} 76... Kg3 {[%clk
0:00:04.3]} 77. Rh8 {[%clk 0:00:02.2]} 77... f2 {[%clk 0:00:04.8]} 78. Rg8+
{[%clk 0:00:02.8]} 78... Kf3 {[%clk 0:00:05.4]} 79. Rf8+ {[%clk 0:00:03.3]}
79... Ke3 {[%clk 0:00:05.8]} 80. Rf7 {[%clk 0:00:01.3]} 80... Rd5+ {[%clk
0:00:06.1]} 81. Kc2 {[%clk 0:00:01.6]} 81... Rd4 {[%clk 0:00:07]} 82. Re7+
{[%clk 0:00:01.5]} 82... Re4 {[%clk 0:00:07.5]} 83. Rf7 {[%clk 0:00:02]} 83...
Rf4 {[%clk 0:00:08]} 84. Re7+ {[%clk 0:00:02.6]} 84... Kf3 {[%clk 0:00:08.6]}
85. Rb7 {[%clk 0:00:01.3]} 85... f1=Q {[%clk 0:00:09]} 86. Rb3+ {[%clk
0:00:02.2]} 86... Kf2 {[%clk 0:00:09.3]} 87. Kb2 {[%clk 0:00:03.1]} 87... Qe2+
{[%clk 0:00:09.7]} 88. Ka1 {[%clk 0:00:02.9]} 88... Qd1+ {[%clk 0:00:09.5]} 89.
Ka2 {[%clk 0:00:03.8]} 89... Qxb3+ {[%clk 0:00:10.1]} 90. Ka1 {[%clk 0:00:03.8]}
90... Qa3+ {[%clk 0:00:09.7]} 0-1

[Event "Late-Titled-Tuesday-Blitz-June-25-2024"]
[Site "Chess.com"]
[Date "2024.06.25"]
[Round "11"]
[White "GothamChess"]
[Black "rdarruda"]
[Result "1-0"]
[WhiteElo "2766"]
[BlackElo "2581"]
[TimeControl "180+1"]
[EndTime "16:00:17 PDT"]
[Termination "GothamChess won by resignation"]

1. e4 {[%clk 0:03:00.5]} 1... c5 {[%clk 0:02:59.5]} 2. a3 {[%clk 0:03:00.7]}
2... e6 {[%clk 0:02:57.8]} 3. b4 {[%clk 0:03:00.7]} 3... cxb4 {[%clk 0:02:58.1]}
4. axb4 {[%clk 0:03:01.6]} 4... Bxb4 {[%clk 0:02:58.1]} 5. c3 {[%clk 0:03:02.3]}
5... Be7 {[%clk 0:02:56.7]} 6. d4 {[%clk 0:03:02.7]} 6... d5 {[%clk 0:02:54.6]}
7. Nd2 {[%clk 0:03:03.1]} 7... dxe4 {[%clk 0:02:53.4]} 8. Nxe4 {[%clk 0:03:04]}
8... Nf6 {[%clk 0:02:53.4]} 9. Nxf6+ {[%clk 0:03:02.4]} 9... Bxf6 {[%clk
0:02:53.6]} 10. Nf3 {[%clk 0:03:01.6]} 10... O-O {[%clk 0:02:52.7]} 11. Bd3
{[%clk 0:03:01.6]} 11... b6 {[%clk 0:02:51.2]} 12. Be4 {[%clk 0:03:00.8]} 1-0

[Event "Late-Titled-Tuesday-Blitz-June-25-2024"]
[Site "Chess.com"]
[Date "2024.06.25"]
[Round "11"]
[White "Viktor_Poddubnyi"]
[Black "Defenstrator"]
[Result "0-1"]
[WhiteElo "2328"]
[BlackElo "2419"]
[TimeControl "180+1"]
[EndTime "16:02:32 PDT"]
[Termination "Defenstrator won by resignation"]

1. e4 {[%clk 0:02:59.5]} 1... e5 {[%clk 0:02:57.5]} 2. f4 {[%clk 0:02:59]} 2...
exf4 {[%clk 0:02:57.6]} 3. Nf3 {[%clk 0:02:59.5]} 3... g5 {[%clk 0:02:58]} 4. h4
{[%clk 0:02:59.3]} 4... g4 {[%clk 0:02:58.1]} 5. Ne5 {[%clk 0:02:59.5]} 5... h5
{[%clk 0:02:57.9]} 6. Bc4 {[%clk 0:02:58]} 6... Nh6 {[%clk 0:02:51.1]} 7. d4
{[%clk 0:02:57.8]} 7... d6 {[%clk 0:02:31]} 8. Nd3 {[%clk 0:02:57.7]} 8... f3
{[%clk 0:02:30.4]} 9. gxf3 {[%clk 0:02:56.8]} 9... Be7 {[%clk 0:02:29]} 10. Be3
{[%clk 0:02:36.3]} 10... Bxh4+ {[%clk 0:02:27.6]} 11. Kd2 {[%clk 0:02:36.5]}
11... Nc6 {[%clk 0:01:59.3]} 12. Nc3 {[%clk 0:02:30.8]} 12... Na5 {[%clk
0:01:43.8]} 13. Bb5+ {[%clk 0:02:16.9]} 13... c6 {[%clk 0:01:42.7]} 14. Ba4
{[%clk 0:02:16.6]} 14... Nc4+ {[%clk 0:01:42.9]} 15. Ke2 {[%clk 0:02:10.9]}
15... gxf3+ {[%clk 0:01:41.2]} 0-1

[Event "Late-Titled-Tuesday-Blitz-June-25-2024"]
[Site "Chess.com"]
[Date "2024.06.25"]
[Round "11"]
[White "kiwibobo"]
[Black "VaglioSagan"]
[Result "0-1"]
[WhiteElo "2336"]
[BlackElo "2512"]
[TimeControl "180+1"]
[EndTime "16:03:00 PDT"]
[Termination "VaglioSagan won by checkmate"]

1. e4 {[%clk 0:03:00.5]} 1... c6 {[%clk 0:01:54.1]} 2. d4 {[%clk 0:02:59.7]}
2... d5 {[%clk 0:01:54.7]} 3. Nc3 {[%clk 0:02:59.8]} 3... dxe4 {[%clk 0:01:55]}
4. Nxe4 {[%clk 0:03:00.7]} 4... Nf6 {[%clk 0:01:55.4]} 5. Nxf6+ {[%clk
0:03:01.6]} 5... exf6 {[%clk 0:01:54.4]} 6. Bd3 {[%clk 0:03:02.5]} 6... Bd6
{[%clk 0:01:52.6]} 7. Qh5 {[%clk 0:03:03.3]} 7... h6 {[%clk 0:01:51.1]} 8. Bd2
{[%clk 0:03:00]} 8... Qe7+ {[%clk 0:01:30.6]} 9. Ne2 {[%clk 0:02:59.3]} 9... Nd7
{[%clk 0:01:24.6]} 10. O-O-O {[%clk 0:02:59.2]} 10... O-O {[%clk 0:01:23.9]} 11.
Ng3 {[%clk 0:02:53.3]} 11... Qe6 {[%clk 0:00:59.4]} 12. Bxh6 {[%clk 0:02:38.3]}
12... Qxa2 {[%clk 0:00:54.3]} 13. Bxg7 {[%clk 0:02:19.2]} 13... Bf4+ {[%clk
0:00:46.5]} 14. Rd2 {[%clk 0:02:14.2]} 14... Qa1# {[%clk 0:00:46.4]} 0-1

[Event "Late-Titled-Tuesday-Blitz-June-25-2024"]
[Site "Chess.com"]
[Date "2024.06.25"]
[Round "11"]
[White "mouseslips_are_the_best"]
[Black "JEHUBNER"]
[Result "1-0"]
[WhiteElo "2356"]
[BlackElo "2013"]
[TimeControl "180+1"]
[EndTime "16:03:04 PDT"]
[Termination "mouseslips_are_the_best won by resignation"]

1. e4 {[%clk 0:03:00.9]} 1... c5 {[%clk 0:03:00]} 2. Nf3 {[%clk 0:03:00.5]} 2...
d6 {[%clk 0:03:00.4]} 3. d4 {[%clk 0:03:01.4]} 3... cxd4 {[%clk 0:03:00.3]} 4.
Nxd4 {[%clk 0:03:02.3]} 4... e6 {[%clk 0:03:00.6]} 5. Nc3 {[%clk 0:03:01.8]}
5... Nf6 {[%clk 0:03:00.7]} 6. g4 {[%clk 0:03:01.6]} 6... h6 {[%clk 0:03:00.5]}
7. h4 {[%clk 0:03:00.4]} 7... Nc6 {[%clk 0:02:47.1]} 8. Rg1 {[%clk 0:02:58.7]}
8... e5 {[%clk 0:02:41.3]} 9. Nf5 {[%clk 0:02:57.8]} 9... Bxf5 {[%clk
0:02:40.4]} 10. exf5 {[%clk 0:02:55.6]} 10... Nd4 {[%clk 0:02:37.7]} 11. Be3
{[%clk 0:02:50.4]} 11... Nc6 {[%clk 0:02:31.7]} 12. g5 {[%clk 0:02:48.9]} 12...
hxg5 {[%clk 0:02:30.9]} 13. hxg5 {[%clk 0:02:49.8]} 13... Nd7 {[%clk 0:02:26.3]}
14. Bc4 {[%clk 0:02:45]} 14... Nb6 {[%clk 0:02:21.4]} 15. Bb3 {[%clk 0:02:42.9]}
15... Qd7 {[%clk 0:02:06.3]} 16. Bxb6 {[%clk 0:02:33.5]} 16... axb6 {[%clk
0:02:07.2]} 17. Nd5 {[%clk 0:02:33.8]} 17... Rd8 {[%clk 0:01:48.1]} 18. g6
{[%clk 0:02:24.4]} 18... Nd4 {[%clk 0:01:36.4]} 19. gxf7+ {[%clk 0:02:23.2]}
19... Kxf7 {[%clk 0:01:30.4]} 20. Nxb6+ {[%clk 0:02:21.2]} 20... Ke8 {[%clk
0:01:29.9]} 21. Nxd7 {[%clk 0:02:20.4]} 21... Rxd7 {[%clk 0:01:30.8]} 22. c3
{[%clk 0:02:12.2]} 22... Nxb3 {[%clk 0:01:16.8]} 23. Qxb3 {[%clk 0:02:13.1]}
23... Be7 {[%clk 0:01:16.2]} 24. O-O-O {[%clk 0:02:09.5]} 24... Bf6 {[%clk
0:01:14.4]} 25. Qe6+ {[%clk 0:02:08.4]} 25... Kd8 {[%clk 0:01:11.9]} 1-0

[Event "Late-Titled-Tuesday-Blitz-June-25-2024"]
[Site "Chess.com"]
[Date "2024.06.25"]
[Round "11"]
[White "ReinisUz"]
[Black "DucksParadise"]
[Result "0-1"]
[WhiteElo "2471"]
[BlackElo "2597"]
[TimeControl "180+1"]
[EndTime "16:03:27 PDT"]
[Termination "DucksParadise won by resignation"]

1. c4 {[%clk 0:03:00.9]} 1... g6 {[%clk 0:02:56.1]} 2. Nc3 {[%clk 0:03:01.1]}
2... c5 {[%clk 0:02:55.2]} 3. g3 {[%clk 0:03:01.3]} 3... Bg7 {[%clk 0:02:55.2]}
4. Bg2 {[%clk 0:03:01.3]} 4... Nc6 {[%clk 0:02:55.3]} 5. e4 {[%clk 0:03:01.7]}
5... d6 {[%clk 0:02:49.9]} 6. Nge2 {[%clk 0:03:01.6]} 6... Nf6 {[%clk
0:02:49.6]} 7. O-O {[%clk 0:03:01.4]} 7... Nd7 {[%clk 0:02:48.7]} 8. Rb1 {[%clk
0:03:00.1]} 8... Nf8 {[%clk 0:02:47.4]} 9. a3 {[%clk 0:03:00.1]} 9... a5 {[%clk
0:02:47.4]} 10. d3 {[%clk 0:02:59.4]} 10... Ne6 {[%clk 0:02:47.4]} 11. h3 {[%clk
0:02:57.5]} 11... O-O {[%clk 0:02:46.7]} 12. f4 {[%clk 0:02:57.6]} 12... Ned4
{[%clk 0:02:46.3]} 13. Kh2 {[%clk 0:02:57.5]} 13... e6 {[%clk 0:02:41.3]} 14.
Nxd4 {[%clk 0:02:57.6]} 14... Nxd4 {[%clk 0:02:42.2]} 15. b4 {[%clk 0:02:54.3]}
15... axb4 {[%clk 0:02:41.9]} 16. axb4 {[%clk 0:02:55.2]} 16... Nc6 {[%clk
0:02:30]} 17. b5 {[%clk 0:02:36.5]} 17... Bxc3 {[%clk 0:02:27.9]} 18. bxc6
{[%clk 0:02:36.5]} 18... bxc6 {[%clk 0:02:28.8]} 19. f5 {[%clk 0:02:24.6]} 19...
exf5 {[%clk 0:02:20.6]} 20. exf5 {[%clk 0:02:20.8]} 20... Be5 {[%clk 0:02:13.9]}
21. fxg6 {[%clk 0:02:18.1]} 21... fxg6 {[%clk 0:02:09.4]} 22. Rxf8+ {[%clk
0:02:09.8]} 22... Qxf8 {[%clk 0:02:10.3]} 23. Qe2 {[%clk 0:02:02]} 23... Bd7
{[%clk 0:02:02.7]} 24. Bb2 {[%clk 0:01:54]} 24... Ra2 {[%clk 0:01:57.4]} 25. Rf1
{[%clk 0:01:18.7]} 25... Qe7 {[%clk 0:01:52.4]} 26. Rb1 {[%clk 0:01:12.5]} 26...
Bxg3+ {[%clk 0:01:51.2]} 0-1

[Event "Late-Titled-Tuesday-Blitz-June-25-2024"]
[Site "Chess.com"]
[Date "2024.06.25"]
[Round "11"]
[White "schondeln"]
[Black "corvachesky"]
[Result "0-1"]
[WhiteElo "2375"]
[BlackElo "2473"]
[TimeControl "180+1"]
[EndTime "16:03:46 PDT"]
[Termination "corvachesky won by resignation"]

1. e4 {[%clk 0:03:00.9]} 1... e5 {[%clk 0:02:59.2]} 2. Nf3 {[%clk 0:03:00.5]}
2... Nc6 {[%clk 0:02:59.6]} 3. Nc3 {[%clk 0:03:00.6]} 3... Nf6 {[%clk
0:02:58.5]} 4. d4 {[%clk 0:03:00.6]} 4... exd4 {[%clk 0:02:57.9]} 5. Nxd4 {[%clk
0:03:01.5]} 5... d6 {[%clk 0:02:55.7]} 6. Bb5 {[%clk 0:03:00.5]} 6... Bd7 {[%clk
0:02:55.9]} 7. Bxc6 {[%clk 0:02:51.1]} 7... bxc6 {[%clk 0:02:56.8]} 8. O-O
{[%clk 0:02:48.6]} 8... Be7 {[%clk 0:02:55.8]} 9. Qf3 {[%clk 0:02:47.8]} 9...
O-O {[%clk 0:02:53.3]} 10. e5 {[%clk 0:02:29]} 10... Ng4 {[%clk 0:02:52]} 11.
exd6 {[%clk 0:02:26.7]} 11... Bxd6 {[%clk 0:02:50.6]} 12. Bf4 {[%clk 0:02:17.1]}
12... Rb8 {[%clk 0:02:42.7]} 13. h3 {[%clk 0:02:00.8]} 13... Ne5 {[%clk
0:02:37.3]} 14. Bxe5 {[%clk 0:01:24.9]} 14... Bxe5 {[%clk 0:02:35.3]} 15. Nxc6
{[%clk 0:01:24.3]} 15... Bxc6 {[%clk 0:02:35.5]} 16. Qxc6 {[%clk 0:01:25.1]}
16... Rxb2 {[%clk 0:02:33.2]} 17. Rad1 {[%clk 0:01:22.7]} 17... Qf6 {[%clk
0:02:27.1]} 18. Qxf6 {[%clk 0:01:20.1]} 18... Bxf6 {[%clk 0:02:28]} 19. Nd5
{[%clk 0:01:14.6]} 19... Rxc2 {[%clk 0:02:26.4]} 20. Nxf6+ {[%clk 0:01:12.8]}
20... gxf6 {[%clk 0:02:27.3]} 21. Rd7 {[%clk 0:01:12]} 21... Re8 {[%clk
0:02:21.1]} 22. Rb1 {[%clk 0:00:52.7]} 22... Ree2 {[%clk 0:02:18.4]} 23. Rb8+
{[%clk 0:00:49.7]} 23... Kg7 {[%clk 0:02:17.9]} 24. Rc8 {[%clk 0:00:50.6]} 24...
Rxf2 {[%clk 0:02:14.7]} 25. Rcxc7 {[%clk 0:00:50.4]} 25... Rxg2+ {[%clk
0:02:14.7]} 26. Kf1 {[%clk 0:00:50.8]} 26... Rxc7 {[%clk 0:02:11.6]} 27. Rxc7
{[%clk 0:00:50.1]} 27... Rxa2 {[%clk 0:02:11.2]} 28. Rc4 {[%clk 0:00:46.2]}
28... a5 {[%clk 0:02:07.7]} 29. Rd4 {[%clk 0:00:46.4]} 29... a4 {[%clk
0:02:06.8]} 30. Rd3 {[%clk 0:00:46.5]} 30... a3 {[%clk 0:02:06.7]} 31. Rd2
{[%clk 0:00:47]} 31... Rxd2 {[%clk 0:02:05.8]} 0-1

[Event "Late-Titled-Tuesday-Blitz-June-25-2024"]
[Site "Chess.com"]
[Date "2024.06.25"]
[Round "11"]
[White "Boundless_Strike"]
[Black "Sic_Transit_GM"]
[Result "1-0"]
[WhiteElo "2725"]
[BlackElo "2554"]
[TimeControl "180+1"]
[EndTime "16:03:49 PDT"]
[Termination "Boundless_Strike won by checkmate"]

1. d4 {[%clk 0:03:00.9]} 1... d5 {[%clk 0:02:59.9]} 2. Nc3 {[%clk 0:03:01.1]}
2... Nf6 {[%clk 0:02:58.9]} 3. e4 {[%clk 0:03:01.5]} 3... Nxe4 {[%clk
0:02:57.4]} 4. Nxe4 {[%clk 0:03:01.3]} 4... dxe4 {[%clk 0:02:58.3]} 5. Be3
{[%clk 0:03:01.1]} 5... e6 {[%clk 0:02:38.4]} 6. f3 {[%clk 0:02:54.6]} 6... exf3
{[%clk 0:02:36.5]} 7. Nxf3 {[%clk 0:02:55.5]} 7... Nd7 {[%clk 0:02:31.3]} 8. Bd3
{[%clk 0:02:55.5]} 8... Nf6 {[%clk 0:02:30.9]} 9. O-O {[%clk 0:02:56]} 9... b6
{[%clk 0:02:29.7]} 10. Qe1 {[%clk 0:02:54.9]} 10... Bb7 {[%clk 0:02:29.6]} 11.
Ne5 {[%clk 0:02:54.4]} 11... Bd6 {[%clk 0:02:27.8]} 12. Bb5+ {[%clk 0:02:53]}
12... Kf8 {[%clk 0:02:23.9]} 13. Qg3 {[%clk 0:02:28.4]} 13... a6 {[%clk
0:02:19]} 14. Bd3 {[%clk 0:02:15.3]} 14... h5 {[%clk 0:02:10.3]} 15. Bg5 {[%clk
0:01:51.5]} 15... Be7 {[%clk 0:02:08.5]} 16. Rf4 {[%clk 0:01:48.3]} 16... Qd5
{[%clk 0:02:01.2]} 17. Raf1 {[%clk 0:01:38.4]} 17... h4 {[%clk 0:01:51.5]} 18.
Qf2 {[%clk 0:01:29.2]} 18... h3 {[%clk 0:01:47.7]} 19. Be4 {[%clk 0:01:16]}
19... Nxe4 {[%clk 0:01:36.7]} 20. Rxf7+ {[%clk 0:01:13.5]} 20... Ke8 {[%clk
0:01:25.8]} 21. Rxe7+ {[%clk 0:01:11.3]} 21... Kd8 {[%clk 0:01:26.3]} 22. Qf8+
{[%clk 0:01:11.2]} 22... Rxf8 {[%clk 0:01:24.9]} 23. Rxf8# {[%clk 0:01:12.1]}
1-0

[Event "Late-Titled-Tuesday-Blitz-June-25-2024"]
[Site "Chess.com"]
[Date "2024.06.25"]
[Round "11"]
[White "betta2004"]
[Black "Yurovskykh_Oleksandr"]
[Result "1-0"]
[WhiteElo "2515"]
[BlackElo "2607"]
[TimeControl "180+1"]
[EndTime "16:03:49 PDT"]
[Termination "betta2004 won on time"]

1. Nf3 {[%clk 0:03:00.9]} 1... d5 {[%clk 0:02:59.5]} 2. b3 {[%clk 0:03:01.8]}
2... Bg4 {[%clk 0:02:57.5]} 3. e3 {[%clk 0:02:58.7]} 3... e6 {[%clk 0:02:54.4]}
4. Bb2 {[%clk 0:02:57.6]} 4... Nf6 {[%clk 0:02:53.6]} 5. h3 {[%clk 0:02:57.3]}
5... Bh5 {[%clk 0:02:53.3]} 6. g4 {[%clk 0:02:57]} 6... Bg6 {[%clk 0:02:51.8]}
7. Ne5 {[%clk 0:02:57.5]} 7... Nbd7 {[%clk 0:02:49.1]} 8. Nxg6 {[%clk
0:02:46.5]} 8... hxg6 {[%clk 0:02:48.4]} 9. Bg2 {[%clk 0:02:47.4]} 9... Bd6
{[%clk 0:02:45]} 10. d4 {[%clk 0:02:46.4]} 10... c6 {[%clk 0:02:39.7]} 11. Nd2
{[%clk 0:02:46.1]} 11... e5 {[%clk 0:02:36.8]} 12. Nf3 {[%clk 0:02:39]} 12...
Qe7 {[%clk 0:02:33.4]} 13. dxe5 {[%clk 0:02:34.5]} 13... Nxe5 {[%clk 0:02:34.3]}
14. Nxe5 {[%clk 0:02:35.2]} 14... Bxe5 {[%clk 0:02:33.9]} 15. Bxe5 {[%clk
0:02:36.1]} 15... Qxe5 {[%clk 0:02:34.4]} 16. Qd4 {[%clk 0:02:37]} 16... Qxd4
{[%clk 0:02:17.2]} 17. exd4 {[%clk 0:02:37.9]} 17... g5 {[%clk 0:02:10.8]} 18.
Kd2 {[%clk 0:02:33]} 18... Kd7 {[%clk 0:02:07.1]} 19. Rae1 {[%clk 0:02:19.3]}
1-0

[Event "Late-Titled-Tuesday-Blitz-June-25-2024"]
[Site "Chess.com"]
[Date "2024.06.25"]
[Round "11"]
[White "Viktoker"]
[Black "jk13"]
[Result "0-1"]
[WhiteElo "2530"]
[BlackElo "2709"]
[TimeControl "180+1"]
[EndTime "16:04:05 PDT"]
[Termination "jk13 won by resignation"]

1. d4 {[%clk 0:03:00.9]} 1... Nf6 {[%clk 0:02:58.2]} 2. Nf3 {[%clk 0:03:00.7]}
2... e6 {[%clk 0:02:58.1]} 3. Bf4 {[%clk 0:02:59]} 3... d5 {[%clk 0:02:58]} 4.
e3 {[%clk 0:02:58.5]} 4... Bd6 {[%clk 0:02:58.9]} 5. Nbd2 {[%clk 0:02:57.4]}
5... O-O {[%clk 0:02:58.7]} 6. Bd3 {[%clk 0:02:56.5]} 6... b6 {[%clk 0:02:59.2]}
7. Qe2 {[%clk 0:02:56.1]} 7... a5 {[%clk 0:02:58.4]} 8. O-O {[%clk 0:02:53.7]}
8... Ba6 {[%clk 0:02:58.4]} 9. c4 {[%clk 0:02:53.9]} 9... c5 {[%clk 0:02:56.5]}
10. Bxd6 {[%clk 0:02:51.6]} 10... Qxd6 {[%clk 0:02:56.3]} 11. Ne5 {[%clk
0:02:52.2]} 11... cxd4 {[%clk 0:02:54.7]} 12. exd4 {[%clk 0:02:51.9]} 12... Nbd7
{[%clk 0:02:04.8]} 13. Rfd1 {[%clk 0:02:49.3]} 13... Bb7 {[%clk 0:01:59.3]} 14.
Ndf3 {[%clk 0:02:47.1]} 14... dxc4 {[%clk 0:01:55.6]} 15. Nxc4 {[%clk
0:02:44.4]} 15... Qf4 {[%clk 0:01:56.5]} 16. Nfe5 {[%clk 0:02:39.3]} 16... Rad8
{[%clk 0:01:32]} 17. Rac1 {[%clk 0:02:14.4]} 17... Ba8 {[%clk 0:01:14.1]} 18. h3
{[%clk 0:02:13.5]} 18... a4 {[%clk 0:01:09.9]} 19. Rc3 {[%clk 0:02:03.2]} 19...
b5 {[%clk 0:01:02.9]} 20. Nxd7 {[%clk 0:01:59.3]} 20... Rxd7 {[%clk 0:01:00.1]}
21. Nb6 {[%clk 0:01:50.8]} 21... Rxd4 {[%clk 0:00:56.4]} 22. Nxa8 {[%clk
0:01:50.8]} 22... Rxa8 {[%clk 0:00:56.6]} 23. Rdc1 {[%clk 0:01:43.9]} 23... b4
{[%clk 0:00:51.7]} 24. Rc8+ {[%clk 0:01:41.7]} 24... Rd8 {[%clk 0:00:52.2]} 25.
Rxa8 {[%clk 0:01:41.5]} 25... Qxc1+ {[%clk 0:00:50.9]} 26. Kh2 {[%clk
0:01:38.4]} 26... Rxa8 {[%clk 0:00:50.2]} 27. Qf3 {[%clk 0:01:39]} 27... Qc7+
{[%clk 0:00:47]} 28. g3 {[%clk 0:01:38.8]} 28... Rd8 {[%clk 0:00:47.3]} 0-1